Cogmind - Beta 13 @@@ ROGUE MODE // 2024.05.07 @ 00:54:08 Player: Sinner6 Result: Core destroyed Performance ------------- Evolutions (3) 1500 Regions Visited (6) 1200 Robots Destroyed (129) 645 Value Destroyed (3629) 3629 Prototype IDs (4) 80 Alien Tech Used (0) 0 Bonus (527) 527 TOTAL SCORE: 7581 Bonus ------- High Alert Combat Kills 27 Entered DSFs 500 Cogmind --------- Core Integrity 0/700 Matter 172/300 Energy 100/100 System Corruption 0% Temperature Critical (3058) Movement Core (50) Location -7/DSF Parts ------- > --- POWER (1) -------- (None) > --- PROPULSION (3) --- (None) > --- UTILITY (6) ------ (None) > --- WEAPON (3) ------- (None) > --- INVENTORY (5) ---- Improved Ion Engine Large Battery (200) Shock Rifle Autogun Scythe Peak State ------------ > --- POWER ------------ Nuclear Core > --- PROPULSION ------- Light Treads Light Treads Improved Treads > --- UTILITY ---------- Large Storage Unit Transport Network Coupler Actuator Array Component Analysis Suite Decoy Drone Bay > --- WEAPON ----------- Field Laser Pulse Rifle Scythe > --- INVENTORY -------- Improved Ion Engine Light Nuclear Core Aluminum Leg Aluminum Leg Aluminum Leg Large Battery Medium Matter Pod Shock Rifle Heavy Particle Cannon Gauss Rifle Rocket Launcher Heavy Hammer [Rating: 41] Favorites ----------- Power Reinforced Ion Engine Engine Reinforced Ion Engine Power Core Light Nuclear Core Propulsion Light Treads Treads Light Treads Leg Aluminum Leg Utility Large Storage Unit Device Shield Generator Storage Large Storage Unit Processor Visual Processing Unit Hackware Hacking Suite Protection Light Armor Plating Weapon Autogun Energy Gun Pulse Rifle Energy Cannon EM Pulse Cannon Ballistic Gun Autogun Ballistic Cannon Improved Light Cannon Launcher Rocket Launcher Impact Weapon Heavy Hammer Slashing Weapon Scythe Build | -11 -10 -10 -9 -8 -7 -7 ------- Run | Yrd Mat Min Mat Mat Fac DSF Slots Evolved 6 | . . . 2 2 2 . Power . | . . . . . . . Propulsion 1 | . . . 1 . . . Utility 4 | . . . 1 2 1 . Weapon 1 | . . . . . 1 . Parts Attached 125 | 8 13 4 37 45 3 15 Power 16 | 1 2 . 6 6 . 1 Engine 11 | 1 2 . 6 2 . . Core 5 | . . . . 4 . 1 Reactor . | . . . . . . . Propulsion 35 | 2 2 1 14 10 . 6 Treads 25 | 2 2 1 14 6 . . Leg 10 | . . . . 4 . 6 Wheel . | . . . . . . . Hover . | . . . . . . . Flight . | . . . . . . . Utility 39 | 2 5 2 7 17 2 4 Device 18 | . 3 1 1 9 2 2 Storage 3 | 2 1 . . . . . Processor 4 | . . . 1 1 . 2 Hackware 2 | . . . . 2 . . Protection 12 | . 1 1 5 5 . . Artifact . | . . . . . . . Weapon 35 | 3 4 1 10 12 1 4 Energy Gun 11 | 2 . . 4 4 1 . Energy Cannon 4 | . . . . 3 . 1 Ballistic Gun 12 | 1 4 1 4 1 . 1 Ballistic Cannon 2 | . . . 1 . . 1 Launcher 1 | . . . . . . 1 Special Weapon . | . . . . . . . Impact Weapon 4 | . . . 1 3 . . Slashing Weapon 1 | . . . . 1 . . Piercing Weapon . | . . . . . . . Special Melee Weapon . | . . . . . . . Unidentified Prototypes 4 | . . . 3 1 . . Corrupted Parts 1 | . . . . 1 . . System Corruption 2 | . . . . 2 . . Parts Lost 31 | . 1 1 3 17 . 9 Power 4 | . . . . 3 . 1 Propulsion 10 | . . . . 5 . 5 Utility 12 | . 1 1 1 8 . 1 Weapon 5 | . . . 2 1 . 2 Highest Loss Streak 6 | . 1 1 2 6 . 5 To Critical Strikes . | . . . . . . . Average Slot Usage (%) 96 | . 99 99 99 90 88 87 Engine 10 | . 14 14 10 6 . . Treads 27 | . 28 28 32 22 23 2 Leg 1 | . . . . 3 . 14 Device 6 | . 8 6 2 8 19 18 Storage 11 | . 15 14 11 9 7 6 Processor 7 | . . . 10 8 7 13 Protection 6 | . 3 7 8 7 . . Energy Gun 5 | . 9 . 2 10 15 3 Ballistic Gun 12 | . 18 28 14 . . . Ballistic Cannon 1 | . . . 3 . . 4 Impact Weapon 1 | . . . . 3 . . Naked Turns 9 | . . . . . . 9 Heaviest Build 56 | 12 32 34 41 56 55 55 Greatest Support 69 | 40 40 40 69 69 63 63 Greatest Overweight (x) 10 | . . . . 10 . 4 Average Overweight (x) . | . . . . . . 1 Largest Inventory Capacity 15 | 8 15 15 15 15 15 15 Average Capacity 14 | 7 13 15 15 15 15 14 Most Carried 15 | 6 15 15 15 15 14 14 Average Carried 13 | 4 11 14 14 13 12 11 Final Capacity 15 | 8 15 15 15 15 15 5 Final Carried 15 | 6 15 15 15 15 12 5 Class Distribution -------------------- 66% | Mutant 28% | Scavenger-Mutant Dominant Class ---------------- Mutant | -10/Materials Mutant | -10/Mines Scavenger-Mutant | -9/Materials Mutant | -8/Materials Mutant | -7/Factory Scavenger-Skirmisher | -7/DSF Resources | -11 -10 -10 -9 -8 -7 -7 ----------- Run | Yrd Mat Min Mat Mat Fac DSF Matter Collected 2561 | 306 225 197 1132 454 . 247 Remotely . | . . . . . . . Salvage Created 4505 | 66 651 172 1766 1578 . 272 Parts 274 | 7 48 12 118 74 . 15 Haulers Intercepted 9 | . 2 . 5 1 . 1 Recyclers Shooed 3 | . . . 3 . . . Parts Field Recycled . | . . . . . . . Retrieved Matter . | . . . . . . . Parts Self-Destructed . | . . . . . . . Prevented . | . . . . . . . Kills | -11 -10 -10 -9 -8 -7 -7 ------- Run | Yrd Mat Min Mat Mat Fac DSF Combat Hostiles Destroyed 90 | . 12 6 35 28 . 9 Melee 4 | . . . . 4 . . Guns 53 | . 12 6 23 11 . 1 Cannons 18 | . . . 12 5 . 1 AOE 10 | . . . . 3 . 7 Classes Destroyed 15 | 2 5 1 2 3 . 2 Worker 10 | 1 2 . 3 4 . . Builder 5 | . 2 . 2 1 . . Tunneler 1 | . . . 1 . . . Hauler 9 | . 2 . 5 1 . 1 Recycler 4 | 1 . . 2 1 . . Mechanic 1 | . . . . 1 . . Watcher 9 | . 2 . 5 2 . . Swarmer 19 | . 2 3 7 3 . 4 Grunt 51 | . 10 2 17 19 . 3 Brawler 1 | . . . 1 . . . Duelist 1 | . . . . 1 . . Sentry 15 | . . 1 10 4 . . Specialist 1 | . . . . . . 1 Hunter 1 | . . . . 1 . . Heavy 1 | . . . . . . 1 Best Kill Streak 8 | 1 3 2 8 4 . 4 Combat Bots Only 5 | . 2 2 5 4 . 4 Max Kills in Single Turn 3 | 1 1 1 2 1 . 3 Gunslinging 1 | . . . 1 . . . Exploded 3 | . . . . 1 . 3 Melee 1 | . . . . 1 . . Uniques/NPCs Destroyed . | . . . . . . . Combat | -11 -10 -10 -9 -8 -7 -7 -------- Run | Yrd Mat Min Mat Mat Fac DSF Hostile Shots Fired 605 | . 67 36 188 244 . 70 Missed 162 | . 27 10 45 61 . 19 Damage Taken 7333 | . 541 217 1789 3000 . 1786 Core 1527 | . 81 22 171 531 . 722 Absorbed by Shields 328 | . 57 59 . 212 . . Redirected to Shielding 79 | . 79 . . . . . Regen/Repaired (Parts) 204 | . . . 204 . . . Core Remaining (%) 54 | 100 . 58 57 3 . . Volleys Fired 342 | 3 58 22 127 104 . 28 Largest 2 | 2 2 2 2 2 . 2 Hottest 126 | 70 70 43 88 126 . 126 Shots Fired 579 | 6 116 44 227 139 . 47 Gun 464 | 6 116 44 184 87 . 27 Cannon 109 | . . . 43 52 . 14 Launcher 6 | . . . . . . 6 Special . | . . . . . . . Kinetic 343 | 3 70 44 211 . . 15 Thermal 149 | 3 46 . 16 58 . 26 Explosive 6 | . . . . . . 6 Electromagnetic 81 | . . . . 81 . . Robot Hit Streak 18 | 2 9 4 18 8 . 6 Robot Miss Streak 7 | 3 4 7 4 4 . 2 Penetration Max . | . . . . . . . Secondary Targets 5 | . 2 . 2 1 . . Max Gunslinging Chain 1 | . 1 . 1 1 . . Shots Hit Robots 391 | 2 69 20 150 116 . 34 Core Hits 184 | 3 34 8 69 49 . 21 Critical Kills . | . . . . . . . Critical Parts Destroyed 3 | . . . 1 2 . . Critical Strikes 14 | . 4 . 3 6 . 1 Burn 7 | . 4 . . 2 . 1 Destroy 1 | . . . 1 . . . Blast 2 | . . . 2 . . . Corrupt 2 | . . . . 2 . . Smash 2 | . . . . 2 . . Melee Attacks 33 | . . . . 31 . 2 Impact 30 | . . . . 30 . . Slashing 3 | . . . . 1 . 2 Piercing . | . . . . . . . Sneak Attacks 7 | . . . . 7 . . Combat Hostiles . | . . . . . . . Follow-up Attacks . | . . . . . . . Damage Inflicted 8942 | 29 861 281 2715 3866 . 1190 Guns 4348 | 22 834 281 1951 960 . 300 Cannons 1802 | . . . 612 956 . 234 Explosions 1146 | . . . . 533 . 613 Melee 1415 | . . . . 1383 . 32 Ramming 231 | 7 27 . 152 34 . 11 Kinetic 3320 | 10 426 281 2442 . . 161 Thermal 2181 | 12 408 . 121 1267 . 373 Explosive 613 | . . . . . . 613 Electromagnetic 1182 | . . . . 1182 . . Impact 1318 | . . . . 1318 . . Slashing 97 | . . . . 65 . 32 Piercing . | . . . . . . . Highest Corruption 12 | . . . 4 12 . . Average Corruption 4 | . . . 3 6 . . Corruption Purged . | . . . . . . . Corruption Blocked . | . . . . . . . Effects 77 | . . . 61 16 . . Message Errors 18 | . . . 16 2 . . Matter Fused 15 | . . . 10 5 . . Heat Flow Errors 4 | . . . 3 1 . . Energy Discharges 9 | . . . 8 1 . . Parts Rejected 3 | . . . 2 1 . . Parts Fused 1 | . . . . 1 . . Data Loss (minor) 11 | . . . 9 2 . . Data Loss (major) 4 | . . . 3 1 . . Misfires 5 | . . . 5 . . . Alerts 3 | . . . 3 . . . Misdirections 2 | . . . . 2 . . Weapon Failures 2 | . . . 2 . . . Overload Shots . | . . . . . . . Overflow Damage 436 | . . . 33 401 . 2 Projectiles 17 | . . . 15 2 . . Explosions 2 | . . . . . . 2 Melee 417 | . . . 18 399 . . Knockbacks 8 | . . . 7 1 . . Impact 4 | . . . 3 1 . . Kinetic 4 | . . . 4 . . . Secondary . | . . . . . . . Self-Inflicted Damage . | . . . . . . . Shots . | . . . . . . . Rammed 32 | 4 4 1 18 5 . . Targets Rammed 41 | 4 5 1 22 6 . 3 Kicked 3 | . . . . . . 3 Crushed 6 | . 1 . 4 1 . . Highest Temperature 3058 | 30 192 22 286 328 . 3058 Average Temperature 157 | 18 62 2 54 91 . 1023 Received Heat Transfer 2258 | . 202 38 714 1214 . 90 Effects 40 | . . . 2 2 . 36 Shutdowns 8 | . . . . . . 8 Energy Bleed 6 | . . . . 1 . 5 Interference 7 | . . . 2 . . 5 Matter Decay 3 | . . . . . . 3 Short Circuit 2 | . . . . . . 2 Damage (minor) 6 | . . . . 1 . 5 Damage (major) 4 | . . . . . . 4 Damage (core) 4 | . . . . . . 4 Siege Activations . | . . . . . . . Robots Corrupted 3 | . . . . 3 . . Combat Hostiles 3 | . . . . 3 . . Parts Fried 7 | . . . 1 6 . . Impact Corruptions 16 | . . . 3 13 . . Robots Melted . | . . . . . . . Combat Hostiles . | . . . . . . . Parts Melted 5 | . 2 . 1 1 . 1 Heat Transferred 4766 | 37 1517 . 296 2139 . 777 Parts Sabotaged . | . . . . . . . Parts Stolen . | . . . . . . . Parts Stripped . | . . . . . . . Power Chain Reactions 6 | . . . . 6 . . Alert | -11 -10 -10 -9 -8 -7 -7 ------- Run | Yrd Mat Min Mat Mat Fac DSF Peak Influence 462 | 10 165 110 462 366 143 249 Initial 138 | . 6 . . 52 138 100 Average 149 | 1 46 29 222 182 138 174 Maximum Alert Level 2 | . . . 2 1 . 1 Low Security (%) 66 | 100 100 100 43 58 100 47 Level 1 30 | . . . 48 41 . 52 Level 2 2 | . . . 7 . . . Level 3 . | . . . . . . . Level 4 . | . . . . . . . Level 5 . | . . . . . . . High Security . | . . . . . . . Max Security . | . . . . . . . Sterilizations 1 | . . . . . . 1 Squads Dispatched 18 | . 3 . 6 8 . 1 Investigation 12 | . 2 . 5 5 . . Extermination . | . . . . . . . Reinforcement 6 | . 1 . 1 3 . 1 Assault . | . . . . . . . Garrison . | . . . . . . . Intercept . | . . . . . . . Searches Triggered . | . . . . . . . Construction Impeded 2 | . . . . 2 . . Haulers Reinforced . | . . . . . . . Active Scanning Responses . | . . . . . . . Cargo Convoy Interrupts . | . . . . . . . Stealth | -11 -10 -10 -9 -8 -7 -7 --------- Run | Yrd Mat Min Mat Mat Fac DSF Distress Signals 7 | . . . 5 2 . . Communications Jammed . | . . . . . . . Distress Signals . | . . . . . . . Times Spotted 146 | . 22 6 52 56 . 10 Peak Tracking Total 7 | . 3 3 7 5 . 4 Tactical Retreats 9 | . . . 1 7 . 1 Traps | -11 -10 -10 -9 -8 -7 -7 ------- Run | Yrd Mat Min Mat Mat Fac DSF Traps Triggered 12 | . 1 . 4 5 . 2 Indirectly . | . . . . . . . Trap Hack Attempts . | . . . . . . . Triggered . | . . . . . . . Disarmed . | . . . . . . . Reprogrammed . | . . . . . . . Reused . | . . . . . . . Traps Extracted . | . . . . . . . Installed . | . . . . . . . Triggered . | . . . . . . . Machines | -11 -10 -10 -9 -8 -7 -7 ---------- Run | Yrd Mat Min Mat Mat Fac DSF Machines Disabled 9 | . . 1 4 4 . . Max in Single Turn 2 | . . 1 1 2 . . Machines Repaired . | . . . . . . . Machines Dismantled . | . . . . . . . Machines Sabotaged . | . . . . . . . Overloaded Fab Kills . | . . . . . . . Hacking | -11 -10 -10 -9 -8 -7 -7 --------- Run | Yrd Mat Min Mat Mat Fac DSF Machines Accessed 24 | . 8 1 7 7 1 . Terminals 17 | . 6 . 4 6 1 . Fabricators . | . . . . . . . Repair Stations 2 | . . . 2 . . . Recycling Units 2 | . 2 . . . . . Scanalyzers 2 | . . . 1 1 . . Garrison Access . | . . . . . . . Total Hacks 67 | . 23 1 16 25 2 . Successful 32 | . 7 1 13 10 1 . Failed 35 | . 16 . 3 15 1 . Catastrophic 7 | . 3 . 2 2 . . Database Lockouts . | . . . . . . . Manual 23 | . 10 . 6 7 . . Terminals 46 | . 19 . 6 19 2 . Fabricators . | . . . . . . . Repair Stations 8 | . . . 8 . . . Recycling Units 4 | . 4 . . . . . Scanalyzers 8 | . . . 2 6 . . Garrison Access . | . . . . . . . Terminal Hacks 12 | . 3 1 3 4 1 . Record 3 | . 2 . . 1 . . Open Door 1 | . . 1 . . . . Open DSF 1 | . . . . . 1 . Alert Level 1 | . . . . 1 . . Unreport Threat 4 | . 1 . 3 . . . Assault Status 1 | . . . . 1 . . Recall Reinforcements 1 | . . . . 1 . . Fabricator Hacks . | . . . . . . . Repair Station Hacks 7 | . . . 7 . . . Scan Component 4 | . . . 4 . . . Repair 3 | . . . 3 . . . Recycling Unit Hacks 2 | . 2 . . . . . Report Inventory 1 | . 1 . . . . . Retrieve Components 1 | . 1 . . . . . Scanalyzer 7 | . . . 2 5 . . Insert Component 4 | . . . 1 3 . . Analyze 3 | . . . 1 2 . . Garrison Access Hacks . | . . . . . . . Unauthorized Hacks 4 | . 2 . 1 1 . . Terminals 4 | . 2 . 1 1 . . Botnet 4 | . 2 . 1 1 . . Fabricators . | . . . . . . . Repair Stations . | . . . . . . . Recycling Units . | . . . . . . . Scanalyzers . | . . . . . . . Garrison Access . | . . . . . . . Data Cores Recovered . | . . . . . . . Used . | . . . . . . . Hacking Detections 18 | . 4 . 6 7 1 . Full Trace Events 10 | . 4 . 2 4 . . Feedback Events 2 | . . . 1 1 . . Corruption 1 | . . . 1 . . . Hackware Fried 1 | . . . . 1 . . Feedback Blocked . | . . . . . . . Robot Schematics Acquired . | . . . . . . . Robots Built . | . . . . . . . Authchips . | . . . . . . . Time . | . . . . . . . Total Robot Build Rating . | . . . . . . . Part Schematics Acquired 3 | . . . 1 2 . . Parts Built . | . . . . . . . Authchips . | . . . . . . . Time . | . . . . . . . Total Part Build Rating . | . . . . . . . Parts Repaired 3 | . . . 3 . . . Time 84 | . . . 84 . . . Parts Recycled . | . . . . . . . Recycled Matter . | . . . . . . . Retrieved Matter . | . . . . . . . Retrieved Components 9 | . 9 . . . . . Parts Scanalyzed 3 | . . . 1 2 . . Part Schematics Acquired 3 | . . . 1 2 . . Parts Damaged 1 | . . . . 1 . . Bothacking | -11 -10 -10 -9 -8 -7 -7 ------------ Run | Yrd Mat Min Mat Mat Fac DSF Used RIF Installer . | . . . . . . . Robots Hacked . | . . . . . . . Non-combat . | . . . . . . . Combat . | . . . . . . . Robot Hacks Applied . | . . . . . . . Relay Couplers Released . | . . . . . . . Fabnet Peak Effective % . | . . . . . . . Robots Rewired . | . . . . . . . Allies Hacked . | . . . . . . . Hacks Repelled . | . . . . . . . Allies | -11 -10 -10 -9 -8 -7 -7 -------- Run | Yrd Mat Min Mat Mat Fac DSF Total Allies . | . . . . . . . Largest Group . | . . . . . . . Highest-Rated Group . | . . . . . . . Highest-Rated Ally . | . . . . . . . Total Orders . | . . . . . . . Ally Attacks . | . . . . . . . Total Damage . | . . . . . . . Kills . | . . . . . . . Allies Corrupted . | . . . . . . . Allies Melted . | . . . . . . . Intel | -11 -10 -10 -9 -8 -7 -7 ------- Run | Yrd Mat Min Mat Mat Fac DSF Robot Analysis Total . | . . . . . . . Derelict Logs Recovered 1 | . . 1 . . . . Drone Launches 11 | . . . . 11 . . Drone Recoveries . | . . . . . . . Exploration | -11 -10 -10 -9 -8 -7 -7 ------------- Run | Yrd Mat Min Mat Mat Fac DSF Turns Passed 8935 | 171 1417 1292 3307 2239 68 441 Spaces Moved 4437 | 89 723 722 1710 995 41 157 Core 30 | 8 . . . 4 . 18 Treads 4216 | 81 723 722 1710 914 41 25 Legs 191 | . . . . 77 . 114 Wheels . | . . . . . . . Hover . | . . . . . . . Flight . | . . . . . . . Fastest Speed 50 | 50 160 160 160 160 160 50 Average Speed 162 | 150 160 160 160 167 160 198 Slowest Speed 550 | 160 160 160 160 550 160 400 Overloaded Moves . | . . . . . . . Propulsion Burnouts . | . . . . . . . Robots Hopped . | . . . . . . . Cave-ins Triggered 1 | . . . . 1 . . Exploration Rate (%) 60 | 5 84 100 95 45 1 92 Regions Visited 6 Branch Regions 1 Pre-discovered Areas 1 | . . 1 . . . . Known Exits Taken 1 | . . . . . 1 . Unknown Exits Taken 5 | 1 1 1 1 1 . . Scrap Searched 1 | . . 1 . . . . Spaces Dug 2 | . . . . 2 . . Terrain Destroyed 54 | . . . 2 33 . 19 Melee 2 | . . . . 2 . . Projectile 2 | . . . 2 . . . AOE 50 | . . . . 31 . 19 Terrain Rammed . | . . . . . . . Walls Destroyed . | . . . . . . . Machines Disabled . | . . . . . . . Actions | -11 -10 -10 -9 -8 -7 -7 --------- Run | Yrd Mat Min Mat Mat Fac DSF Total 5527 | 115 885 823 2062 1370 43 229 Wait 395 | 6 44 60 124 152 . 9 Move 4431 | 88 722 721 1709 994 40 157 Hop . | . . . . . . . Pick Up 67 | 6 20 6 12 16 . 7 Fast Attach 48 | 7 5 1 15 14 1 5 Attach 31 | . . 1 4 18 2 6 Detach 15 | . 3 . 1 10 . 1 Swap 46 | 1 8 2 18 13 . 4 Drop 71 | . 20 9 30 12 . . Fire 342 | 3 58 22 127 104 . 28 Melee 33 | . . . . 31 . 2 Ram . | . . . . . . . Kick 3 | . . . . . . 3 Crush 38 | 4 5 1 22 6 . . Escape Stasis 4 | . . . . . . 4 Rewire 3 | . . . . . . 3 Trap . | . . . . . . . Miscellaneous . | . . . . . . . Route ------- -11/Scrapyard -10/Materials (discovered 4 exits: *Mat x2 / *Min x2) -10/Mines (discovered 2 exits: *Mat x2) -9/Materials (discovered 4 exits: *Mat x3 / [*Min]) -8/Materials -7/Factory -7/DSF (discovered 1 exit: [*Fac]) History --------- Turn | Location | Event 6 | -11/Scrapyard | Discovered new exit (range 15) 172 | -11/Scrapyard | Entered Materials 329 | -10/Materials | Build established: Mutant 681 | -10/Materials | Discovered new exit (range 12) 904 | -10/Materials | Discovered new exit (range 16) 1016 | -10/Materials | Discovered new exit (range 5) 1568 | -10/Materials | Discovered new exit (range 3) 1589 | -10/Materials | Entered Mines 1811 | -10/Mines | Discovered new exit (range 15) 1853 | -10/Mines | Discovered new exit (range 11) 2082 | -10/Mines | Received a Rocket Launcher from a helpful Derelict 2198 | -10/Mines | Joined a pair of Derelicts in attacking an 0b10 outpost 2773 | -10/Mines | Found the Drone Emporium 2786 | -10/Mines | Found Prototype Device 2881 | -10/Mines | Entered Materials 2881 | -9/Materials | Evolved 2 slots: Propulsion x1, Utility x1 3164 | -9/Materials | Build established: Scavenger-Mutant 3224 | -9/Materials | Discovered new exit (range 13) 3515 | -9/Materials | Repaired Lgt. Treads 3832 | -9/Materials | Repaired Lgt. Armor Plating 3866 | -9/Materials | Repaired Rnf. Ion Engine 3954 | -9/Materials | Discovered new exit (range 18) 5262 | -9/Materials | Discovered new exit (range 11) 5510 | -9/Materials | Build established: Mutant 5794 | -9/Materials | Discovered new exit (range 18) 6188 | -9/Materials | Entered another Materials area 6188 | -8/Materials | Evolved 2 slots: Utility x2 6188 | -8/Materials | Identified Decoy Drone Bay 6974 | -8/Materials | Hacking Suite fried by hacking feedback 7080 | -8/Materials | Discovered new exit (range 61) 7903 | -8/Materials | Core integrity fell below 50% 7981 | -8/Materials | Lost 6 parts (1p2n2u1w) 8191 | -8/Materials | Crushed by falling debris 8191 | -8/Materials | Core integrity fell below 20% 8191 | -8/Materials | System corruption reached 10% 8222 | -8/Materials | Lost 5 parts (1p1n3u) 8427 | -8/Materials | Entered Factory 8427 | -7/Factory | Evolved 2 slots: Utility x1, Weapon x1 8493 | -7/Factory | Identified exit to DSF 8495 | -7/Factory | Entered DSF 8559 | -7/DSF | Lost 3 parts (2n1u) 8582 | -7/DSF | Additional patrols routed to DSF 8642 | -7/DSF | Lost 5 parts (1p2n2w) 8769 | -7/DSF | Sterilization system engaged 8789 | -7/DSF | Ambient heat levels rising (+10) 8804 | -7/DSF | Ambient heat levels rising (+10) 8819 | -7/DSF | Ambient heat levels rising (+10) 8834 | -7/DSF | Ambient heat levels rising (+10) 8849 | -7/DSF | Ambient heat levels rising (+10) 8864 | -7/DSF | Ambient heat levels rising (+10) 8876 | -7/DSF | Core integrity fell below 50% 8879 | -7/DSF | Ambient heat levels rising (+10) 8894 | -7/DSF | Ambient heat levels rising (+10) 8909 | -7/DSF | Ambient heat levels rising (+10) 8924 | -7/DSF | Ambient heat levels rising (+10) 8928 | -7/DSF | Released all parts (13) 8929 | -7/DSF | Discovered new exit (range 16) 8931 | -7/DSF | Core integrity fell below 20% 8937 | -7/DSF | Core destroyed Last Messages --------------- 08928_ Released Aluminum Leg. 08928_ Released Imp. Light Cannon. 08928_ Released Hvy. Particle Cannon. 08928_ Released Lgt. Nuclear Core. 08928_ Released Machine Analyzer. 08928_ Released Lrg. Storage Unit. 08928_ Released Actuator Array. 08928_ Released Rocket Launcher. 08928_ Released Broken Aluminum Leg. 08928_ Released Visual Processing Unit. 08928_ Released Graphene Brace. 08928_ Released Adv. ECM Suite. 08929_ A-02 Transporter heat spikes uncontrollably. 08929_ EXIT=FOUND 08931_ Overheating: Core damaged (-70). 08932_ Overheating: Matter decay (-56). 08936_ Overheating: Matter decay (-30). 08937_ Overheating: Core damaged (-98). [Achievement: Just Browsing] Map ----- +----------------------------------------------------+ | | | | | | | | | | | | | | | | | | | | | | | | | | | | | | | ??????????????????????????????????? | | ??????????????????????????????????? | | ??????????????????????????????????? | | ??????????????????????????????????? | | ?????????""???????????????????????? | | ?????????#"#??????????????????????? | | ??????####"##???????#########?????? | | ??????#"""""#########!![[[ #?????? | | ??????#"""""##[[# #!![[[ #?????? | | ?????##""< #?????? | | ????""""" @ #?????? | | ?????##"" ##]]#]]]### ###?????? | | ??????### ###]]#]]]###]!!###?????? | | ????????# #?######## /!]! #?????? | | ???????# [????????# []==* #?????? | | ???????# [????????# !]*!= #?????? | | ???????## #????????###!!=###?????? | | ????????] [????????#!! !!#?????? | | ????????] [????????#!! !!#?????? | | ???????#] [????????#!! !!#?????? | | ???????## ##???###?### %######### | | ??????#?! ?#!!?#!!!?## # #]]]# | | ??????#!! ##!!!#!!!## #]]]# | | ??????#!! ^^ % | | ??????#!! ^^ %[ | | ??????#!! ^ %* | | ??????# ## #!!!##% = =! !! | | ????????????# ??#!!!?## %# [ # | | ????????????????###?### ## ### # | | ????????????????????#!! !!##?#### | | ????????????????????#!! !!#?????# | | ????????????????????#!! !!#?????# | | ????????????????????### ###?????# | | ????????????????????#// [[#?????? | | ????????????????????#// [[#?????? | +----------------------------------------------------+ Best States ------------- Heat Dissipation 45 Energy Generation 14 Energy Capacity 280 Matter Stores 338 Matter Capacity 350 Sight Range 18 Terrain Scan Density 10 ECM Strength 2 Armor Coverage 750 Propulsion Shielding 33 Evasion (%) 40 Recoil Reduction 3 Offensive Hacking 10 Defensive Hacking 10 Authchip Count 1 Item Schematics ----------------- Imp. Treads | -9/Materials | Scanalyzed Lgt. Armor Plating | -8/Materials | Scanalyzed Nuclear Core | -8/Materials | Scanalyzed Robot Schematics ------------------ None Fabricated ------------ Nothing Alien Tech Used ----------------- None Achievements -------------- Just Browsing Release The Drones! Challenges ------------ None Game ------ Seed AlertCoilMultitool Manual? 0 Play Time 02:42:02 Cumulative 46.0 hours Start 2024.05.05 @ 23:20:11 End 2024.05.07 @ 00:54:08 Sessions 4 Manual Loads 0 Difficulty Rogue Special Mode None Game No. 9 Rogue 5 Adventurer 4 Explorer 0 Win Type - Total 0 Types 0/0/0/0/0/0/0/0/0 Lore% 16 Gallery% 25 Achievement% 19 Wizard Run 0 Options --------- Layout 1 ASCII 0 Keyboard 0 Movement Numpad Keybinds 0 Fullscreen 1 Font 16/SmallcapsGlow Map View 50x40 Zoom Use 8% Tactical HUD 1 Map Filters NONE Filters NONE Steam SD RUN: 5f7b341b-b91b-42d2-9164-72153bb41638